[Event "23rd ETCC Women 2021"]
[Site "Catez"]
[Date "2021.11.19"]
[Round "6.58"]
[White "Medic, Mirjana"]
[Black "Emelianova, Maria"]
[Result "1-0"]
[ECO "E68"]
[WhiteElo "2196"]
[BlackElo "2113"]
[Annotator "ChessBase"]
[PlyCount "75"]
[EventDate "2021.11.08"]
[EventType "team-tourn"]
[EventCountry "SLO"]
[WhiteTeam "Croatia"]
[BlackTeam "England"]
[WhiteTeamCountry "CRO"]
[BlackTeamCountry "ENG"]
[TimeControl "40/5400+30:1800+30"]

1. d4 {[%emt 0:00:02]} Nf6 {[%emt 0:00:18]} 2. Nf3 {[%emt 0:00:07]} g6 {
[%emt 0:00:50]} 3. g3 {[%emt 0:00:11]} Bg7 {[%emt 0:00:06]} 4. c4 {[%emt 0:00:
09]} O-O {[%emt 0:00:10]} 5. Bg2 {[%emt 0:00:04]} d6 {[%emt 0:00:20]} 6. Nc3 {
[%emt 0:00:07]} Nbd7 {[%emt 0:00:04]} 7. O-O {[%emt 0:00:15]} e5 {[%emt 0:00:
35]} 8. h3 {[%emt 0:00:42]} Re8 {[%emt 0:00:41]} 9. e4 {[%emt 0:00:13]} exd4 {
[%emt 0:02:49]} 10. Nxd4 {[%emt 0:00:08]} Nc5 {[%emt 0:00:26]} 11. Re1 {
[%emt 0:00:36]} Bd7 {[%emt 0:02:43]} 12. Rb1 {[%emt 0:09:08]} a5 {[%emt 0:00:
37]} 13. b3 {[%emt 0:01:04]} a4 {[%emt 0:02:46]} 14. b4 {[%emt 0:08:09]} Ne6 {
[%emt 0:00:14]} 15. Nf3 {[%emt 0:09:14]} Ng4 {[%emt 0:20:24]} 16. Nd5 {[%emt 0:
02:51]} Ne5 {[%emt 0:01:16]} 17. Nxe5 {[%emt 0:03:21]} Bxe5 {[%emt 0:03:12]}
18. Be3 {[%emt 0:01:32]} Bg7 {[%emt 0:08:57]} 19. Qd2 {[%emt 0:10:49]} b6 {
[%emt 0:12:32]} 20. f4 {[%emt 0:08:22]} c5 {[%emt 0:16:31]} 21. f5 {[%emt 0:08:
26]} Nd4 {[%emt 0:01:26]} 22. g4 {[%emt 0:00:56]} Rb8 {[%emt 0:10:59]} 23. Rf1
{[%emt 0:02:12]} Bc6 {[%emt 0:07:21]} 24. fxg6 {[%emt 0:03:45]} hxg6 {[%emt 0:
01:36]} 25. Bg5 {[%emt 0:00:26]} Qd7 {[%emt 0:03:07]} 26. Nf6+ {[%emt 0:08:27]}
Bxf6 {[%emt 0:00:03]} 27. Bxf6 {[%emt 0:00:05]} Re6 {[%emt 0:02:07]} 28. Bxd4 {
[%emt 0:03:03]} cxd4 {[%emt 0:00:06]} 29. Qxd4 {[%emt 0:00:07]} Qb7 {[%emt 0:
00:42]} 30. Rf4 {[%emt 0:00:45]} Rbe8 {[%emt 0:00:24]} 31. Rbf1 {[%emt 0:00:12]
} Rxe4 {[%emt 0:00:37]} 32. Bxe4 {[%emt 0:01:12]} Rxe4 {[%emt 0:00:53]} 33.
Rxe4 {[%emt 0:01:53]} Bxe4 {[%emt 0:00:01]} 34. Qxd6 {[%emt 0:01:35]} Bg2 {
[%emt 0:00:38]} 35. Qd8+ {[%emt 0:00:32]} Kh7 {[%emt 0:00:19]} 36. Qh4+ {
[%emt 0:00:11]} Kg8 {[%emt 0:00:26]} 37. Rd1 {[%emt 0:00:24]} f5 {[%emt 0:01:
30]} 38. Qd8+ {[%emt 0:00:27]} 1-0

[Event "23rd ETCC Women 2021"]
[Site "Catez"]
[Date "2021.11.19"]
[Round "6.59"]
[White "Bayat, Shohreh"]
[Black "Radikovic, Anamarija"]
[Result "1/2-1/2"]
[ECO "B13"]
[WhiteElo "2091"]
[BlackElo "2124"]
[Annotator "ChessBase"]
[PlyCount "96"]
[EventDate "2021.11.08"]
[EventType "team-tourn"]
[EventCountry "SLO"]
[WhiteTeam "England"]
[BlackTeam "Croatia"]
[WhiteTeamCountry "ENG"]
[BlackTeamCountry "CRO"]
[TimeControl "40/5400+30:1800+30"]

1. d4 {[%emt 0:00:14]} Nf6 {[%emt 0:00:07]} 2. Nc3 {[%emt 0:00:09]} d5 {
[%emt 0:00:07]} 3. Bf4 {[%emt 0:00:08]} c5 {[%emt 0:00:06]} 4. e3 {[%emt 0:00:
35]} cxd4 {[%emt 0:00:54]} 5. exd4 {[%emt 0:00:18]} a6 {[%emt 0:00:07]} 6. Nf3
{[%emt 0:01:38]} Bg4 {[%emt 0:00:57]} 7. Be2 {[%emt 0:02:24]} Nc6 {[%emt 0:01:
39]} 8. Ne5 {[%emt 0:03:58]} Bxe2 {[%emt 0:06:29]} 9. Nxe2 {[%emt 0:00:45]} e6
{[%emt 0:07:00]} 10. c3 {[%emt 0:01:30]} Be7 {[%emt 0:06:21]} 11. Nc1 {[%emt 0:
02:34]} Rc8 {[%emt 0:16:23]} 12. Ncd3 {[%emt 0:07:19]} O-O {[%emt 0:01:00]} 13.
O-O {[%emt 0:00:16]} b5 {[%emt 0:09:14]} 14. Nxc6 {[%emt 0:03:43]} Rxc6 {
[%emt 0:00:05]} 15. Ne5 {[%emt 0:00:24]} Rc8 {[%emt 0:00:50]} 16. a3 {[%emt 0:
00:21]} Ne4 {[%emt 0:08:23]} 17. Qg4 {[%emt 0:05:43]} Kh8 {[%emt 0:09:10]} 18.
Rae1 {[%emt 0:08:50]} a5 {[%emt 0:07:51]} 19. Qh5 {[%emt 0:12:43]} Qe8 {
[%emt 0:02:24]} 20. f3 {[%emt 0:04:25]} Nf6 {[%emt 0:02:44]} 21. Qh3 {[%emt 0:
02:45]} b4 {[%emt 0:00:46]} 22. axb4 {[%emt 0:00:06]} axb4 {[%emt 0:00:07]} 23.
Bd2 {[%emt 0:01:19]} Qb5 {[%emt 0:02:44]} 24. Ng4 {[%emt 0:05:09]} Nd7 {
[%emt 0:03:39]} 25. f4 {[%emt 0:00:41]} f5 {[%emt 0:09:07]} 26. Ne5 {[%emt 0:
04:48]} Kg8 {[%emt 0:01:33]} 27. Nxd7 {[%emt 0:01:20]} Qxd7 {[%emt 0:00:06]}
28. Qe3 {[%emt 0:02:56]} Kf7 {[%emt 0:02:46]} 29. Qe2 {[%emt 0:01:40]} g6 {
[%emt 0:00:38]} 30. Rf3 {[%emt 0:00:10]} Rc6 {[%emt 0:00:49]} 31. Rh3 {[%emt 0:
01:19]} Kg8 {[%emt 0:00:16]} 32. Re3 {[%emt 0:01:30]} Kf7 {[%emt 0:00:11]} 33.
cxb4 {[%emt 0:01:23]} Rb8 {[%emt 0:00:43]} 34. b5 {[%emt 0:00:22]} Rcb6 {
[%emt 0:01:12]} 35. Ba5 {[%emt 0:01:04]} Qxb5 {[%emt 0:00:12]} 36. Qxb5 {
[%emt 0:02:57]} Rxb5 {[%emt 0:00:06]} 37. Rxe6 {[%emt 0:00:37]} Bh4 {[%emt 0:
01:02]} 38. g3 {[%emt 0:00:59]} Bxg3 {[%emt 0:00:16]} 39. hxg3 {[%emt 0:00:43]}
Rxa5 {[%emt 0:00:05]} 40. Re7+ {[%emt 0:00:20]} Kf8 {[%emt 0:01:18]} 41. R1e2 {
[%emt 0:32:26]} Ra1+ {[%emt 0:07:55]} 42. Kf2 {[%emt 0:00:00]} Rh1 {[%emt 0:03:
02]} 43. Kg2 {[%emt 0:00:00]} Rb1 {[%emt 0:00:59]} 44. Rxh7 {[%emt 0:00:00]}
R8xb2 {[%emt 0:00:31]} 45. Rxb2 {[%emt 0:00:00]} Rxb2+ {[%emt 0:00:06]} 46. Kf3
{[%emt 0:00:00]} Rb3+ {[%emt 0:00:19]} 47. Ke2 {[%emt 0:00:00]} Ke8 {[%emt 0:
03:27]} 48. Kf2 {[%emt 0:00:00]} Rb2+ {[%emt 0:07:09]} 1/2-1/2

[Event "23rd ETCC Women 2021"]
[Site "Catez"]
[Date "2021.11.19"]
[Round "6.60"]
[White "Vujnovic, Patricija"]
[Black "Varney, Zoe"]
[Result "1-0"]
[ECO "E03"]
[WhiteElo "2151"]
[BlackElo "1955"]
[Annotator "ChessBase"]
[PlyCount "75"]
[EventDate "2021.11.08"]
[EventType "team-tourn"]
[EventCountry "SLO"]
[WhiteTeam "Croatia"]
[BlackTeam "England"]
[WhiteTeamCountry "CRO"]
[BlackTeamCountry "ENG"]
[TimeControl "40/5400+30:1800+30"]

1. d4 {[%emt 0:00:02]} d5 {[%emt 0:00:05]} 2. Nf3 {[%emt 0:00:09]} Nf6 {
[%emt 0:00:07]} 3. c4 {[%emt 0:00:13]} dxc4 {[%emt 0:00:22]} 4. Qa4+ {[%emt 0:
04:01]} Nbd7 {[%emt 0:09:28]} 5. Qxc4 {[%emt 0:00:51]} e6 {[%emt 0:01:52]} 6.
g3 {[%emt 0:07:34]} a6 {[%emt 0:05:10]} 7. Bg2 {[%emt 0:04:45]} b5 {[%emt 0:03:
35]} 8. Qc2 {[%emt 0:00:53]} Bb7 {[%emt 0:00:43]} 9. O-O {[%emt 0:01:11]} c5 {
[%emt 0:03:32]} 10. dxc5 {[%emt 0:14:59]} Bxc5 {[%emt 0:02:56]} 11. Nc3 {
[%emt 0:03:31]} Rc8 {[%emt 0:04:01]} 12. Qd3 {[%emt 0:04:51]} O-O {[%emt 0:06:
53]} 13. a3 {[%emt 0:13:34]} Qc7 {[%emt 0:09:48]} 14. Bf4 {[%emt 0:14:44]} Qc6
{[%emt 0:19:25]} 15. Ne1 {[%emt 0:14:10]} Qb6 {[%emt 0:02:27]} 16. Bxb7 {
[%emt 0:00:11]} Qxb7 {[%emt 0:00:51]} 17. Qf3 {[%emt 0:00:56]} Qa7 {[%emt 0:01:
43]} 18. Ng2 {[%emt 0:09:05]} Rfe8 {[%emt 0:04:23]} 19. Rfd1 {[%emt 0:03:15]}
e5 {[%emt 0:07:30]} 20. Be3 {[%emt 0:00:02]} e4 {[%emt 0:02:11]} 21. Qf4 {
[%emt 0:00:13]} h6 {[%emt 0:01:45]} 22. Bxc5 {[%emt 0:00:35]} Rxc5 {[%emt 0:04:
23]} 23. Rd6 {[%emt 0:01:00]} Rc4 {[%emt 0:02:41]} 24. Qe3 {[%emt 0:00:59]} Qc7
{[%emt 0:02:21]} 25. Rad1 {[%emt 0:00:02]} Nc5 {[%emt 0:01:17]} 26. h3 {
[%emt 0:00:42]} Qb7 {[%emt 0:01:54]} 27. Nf4 {[%emt 0:00:46]} b4 {[%emt 0:00:
45]} 28. axb4 {[%emt 0:00:04]} Qxb4 {[%emt 0:00:15]} 29. Rxf6 {[%emt 0:00:39]}
gxf6 {[%emt 0:00:08]} 30. Nfd5 {[%emt 0:00:22]} Qxb2 {[%emt 0:01:03]} 31. Nxf6+
{[%emt 0:00:43]} Kf8 {[%emt 0:00:27]} 32. Qxh6+ {[%emt 0:00:13]} Ke7 {[%emt 0:
00:04]} 33. Ncd5+ {[%emt 0:00:27]} Kd8 {[%emt 0:00:47]} 34. Nxe8 {[%emt 0:00:
28]} Ne6 {[%emt 0:02:04]} 35. Qf6+ {[%emt 0:00:43]} Qxf6 {[%emt 0:00:29]} 36.
Nexf6 {[%emt 0:00:35]} Nd4 {[%emt 0:00:18]} 37. e3 {[%emt 0:00:37]} Nf3+ {
[%emt 0:00:20]} 38. Kg2 {[%emt 0:00:50]} 1-0

[Event "23rd ETCC Women 2021"]
[Site "Catez"]
[Date "2021.11.19"]
[Round "7.1"]
[White "Mammadzada, Gunay"]
[Black "Goryachkina, Aleksandra"]
[Result "1/2-1/2"]
[ECO "C07"]
[WhiteElo "2459"]
[BlackElo "2604"]
[Annotator "RC"]
[PlyCount "88"]
[EventDate "2021.11.08"]
[EventType "team-tourn"]
[EventCountry "SLO"]
[SourceTitle "playchess.com"]
[Source "ChessBase"]
[SourceQuality "1"]
[WhiteTeam "Azerbaijan"]
[BlackTeam "Russia"]
[WhiteTeamCountry "AZE"]
[BlackTeamCountry "RUS"]
[TimeControl "40/5400+30:1800+30"]

1. e4 {[%emt 0:00:10]} e6 {[%emt 0:00:23]} 2. d4 {[%emt 0:00:19]} d5 {[%emt 0:
00:07]} 3. Nd2 {[%emt 0:00:17]} c5 {[%emt 0:00:33]} 4. Ngf3 {[%emt 0:03:28]}
cxd4 {[%emt 0:00:23]} 5. exd5 {[%emt 0:08:40]} Qxd5 {[%emt 0:00:16]} 6. Bc4 {
[%emt 0:00:05]} Qd6 {[%emt 0:00:37]} 7. O-O {[%emt 0:00:08]} Nf6 {[%emt 0:00:
53]} 8. Nb3 {[%emt 0:00:15]} Nc6 {[%emt 0:00:43]} 9. Nbxd4 {[%emt 0:00:10]}
Nxd4 {[%emt 0:01:02]} 10. Nxd4 {[%emt 0:00:05]} Be7 {[%emt 0:00:44]} 11. c3 {
[%emt 0:07:23]} O-O {[%emt 0:00:42]} 12. Qf3 {[%emt 0:02:52]} Qc7 {[%emt 0:00:
42]} 13. Bb3 {[%emt 0:07:03]} a5 {[%emt 0:00:30]} 14. a4 {[%emt 0:04:33]} Bd7 {
[%emt 0:00:32]} 15. Re1 {[%emt 0:12:22]} Qb6 {[%emt 0:00:44]} 16. Bf4 {[%emt 0:
02:15]} Rac8 {[%emt 0:14:16]} 17. Be5 {[%emt 0:08:37]} Rfd8 {[%emt 0:03:13]}
18. Qh3 {[%emt 0:05:05]} Ne8 {[%emt 0:18:46]} 19. Re3 {[%emt 0:10:03]} Bf6 {
[%emt 0:02:25]} 20. f4 {[%emt 0:06:11]} Bc6 {[%emt 0:05:52]} 21. Rf1 {[%emt 0:
07:45]} h6 {[%emt 0:07:28]} 22. f5 {[%emt 0:07:17]} Bd5 {[%emt 0:07:54]} 23.
fxe6 {[%emt 0:00:33]} Bxb3 {[%emt 0:08:08]} 24. Nxb3 {[%emt 0:00:33]} Qxb3 {
[%emt 0:05:31]} 25. Bxf6 {[%emt 0:00:05]} Nxf6 {[%emt 0:00:30]} 26. e7 {
[%emt 0:00:04]} Re8 {[%emt 0:08:01]} 27. Rxf6 {[%emt 0:00:05]} Rc7 {[%emt 0:04:
57]} 28. Rf1 {[%emt 0:05:34]} Rcxe7 {[%emt 0:02:12]} 29. Rxe7 {[%emt 0:00:09]}
Rxe7 {[%emt 0:00:03]} 30. Qc8+ {[%emt 0:00:10]} Kh7 {[%emt 0:00:05]} 31. Qf5+ {
[%emt 0:02:20]} g6 {[%emt 0:00:17]} 32. Qxa5 {[%emt 0:00:07]} Qxb2 {[%emt 0:01:
05]} 33. Qc5 {[%emt 0:00:54]} Qe2 {[%emt 0:00:48]} 34. h3 {[%emt 0:00:18]} Rd7
{[%emt 0:02:27]} 35. Qf8 {[%emt 0:01:09]} Qe3+ {[%emt 0:00:52]} 36. Kh1 {
[%emt 0:00:04]} Qe6 {[%emt 0:00:58]} 37. Qb4 {[%emt 0:00:46]} Kg7 {[%emt 0:00:
40]} 38. Qf4 {[%emt 0:00:23]} h5 {[%emt 0:01:18]} 39. Qg3 {[%emt 0:00:57]} Qe4
{[%emt 0:01:42]} 40. Qf4 {[%emt 0:00:25]} Qe6 {[%emt 0:00:34]} 41. Qg3 {
[%emt 0:30:02]} Rd5 {[%emt 0:08:43]} 42. Qc7 {[%emt 0:00:00]} Rd7 {[%emt 0:01:
14]} 43. Qg3 {[%emt 0:00:00]} Rd5 {[%emt 0:00:19]} 44. Qc7 {[%emt 0:00:00]} Rd7
{[%emt 0:00:13]} 1/2-1/2

[Event "23rd ETCC Women 2021"]
[Site "Catez"]
[Date "2021.11.19"]
[Round "7.2"]
[White "Lagno, Kateryna"]
[Black "Balajayeva, Khanim"]
[Result "1/2-1/2"]
[ECO "C84"]
[WhiteElo "2550"]
[BlackElo "2369"]
[Annotator "ChessBase"]
[PlyCount "109"]
[EventDate "2021.11.08"]
[EventType "team-tourn"]
[EventCountry "SLO"]
[SourceTitle "playchess.com"]
[Source "ChessBase"]
[SourceQuality "1"]
[WhiteTeam "Russia"]
[BlackTeam "Azerbaijan"]
[WhiteTeamCountry "RUS"]
[BlackTeamCountry "AZE"]
[TimeControl "40/5400+30:1800+30"]

1. e4 {[%emt 0:00:02]} e5 {[%emt 0:00:08]} 2. Nf3 {[%emt 0:00:11]} Nc6 {
[%emt 0:00:07]} 3. Bb5 {[%emt 0:00:09]} a6 {[%emt 0:00:12]} 4. Ba4 {[%emt 0:00:
07]} Nf6 {[%emt 0:00:03]} 5. O-O {[%emt 0:00:09]} Be7 {[%emt 0:00:15]} 6. d3 {
[%emt 0:00:13]} d6 {[%emt 0:00:34]} 7. c3 {[%emt 0:00:16]} O-O {[%emt 0:00:16]}
8. Re1 {[%emt 0:00:19]} b5 {[%emt 0:01:21]} 9. Bc2 {[%emt 0:00:12]} d5 {
[%emt 0:00:22]} 10. Nbd2 {[%emt 0:00:33]} dxe4 {[%emt 0:00:28]} 11. dxe4 {
[%emt 0:00:17]} Be6 {[%emt 0:00:35]} 12. Qe2 {[%emt 0:07:41]} Qc8 {[%emt 0:00:
45]} 13. a4 {[%emt 0:02:44]} Qb7 {[%emt 0:01:07]} 14. Bd3 {[%emt 0:09:23]} Rab8
{[%emt 0:04:56]} 15. Nf1 {[%emt 0:04:29]} h6 {[%emt 0:10:00]} 16. Ng3 {[%emt 0:
01:52]} Rfd8 {[%emt 0:06:40]} 17. axb5 {[%emt 0:10:45]} axb5 {[%emt 0:00:07]}
18. b4 {[%emt 0:02:42]} Bd6 {[%emt 0:09:34]} 19. Be3 {[%emt 0:08:40]} Ne7 {
[%emt 0:08:04]} 20. Ra5 {[%emt 0:05:13]} c6 {[%emt 0:00:45]} 21. Ra7 {[%emt 0:
07:26]} Qc8 {[%emt 0:00:08]} 22. Nxe5 {[%emt 0:04:18]} Bxe5 {[%emt 0:01:17]}
23. Rxe7 {[%emt 0:00:04]} Bxc3 {[%emt 0:04:06]} 24. Rc1 {[%emt 0:06:27]} Bxb4 {
[%emt 0:01:34]} 25. Ra7 {[%emt 0:00:09]} Ra8 {[%emt 0:04:23]} 26. Rxa8 {
[%emt 0:09:27]} Qxa8 {[%emt 0:00:04]} 27. Bb1 {[%emt 0:04:00]} Qa3 {[%emt 0:11:
00]} 28. h3 {[%emt 0:00:46]} Bc4 {[%emt 0:04:33]} 29. Qf3 {[%emt 0:07:44]} Bc5
{[%emt 0:00:54]} 30. Nf5 {[%emt 0:00:56]} Bxe3 {[%emt 0:12:35]} 31. Qxe3 {
[%emt 0:00:01]} Qxe3 {[%emt 0:04:35]} 32. Nxe3 {[%emt 0:00:02]} Rd4 {[%emt 0:
00:12]} 33. Nf5 {[%emt 0:02:17]} Rd7 {[%emt 0:01:06]} 34. e5 {[%emt 0:00:35]}
Nd5 {[%emt 0:01:51]} 35. Nd6 {[%emt 0:00:10]} Re7 {[%emt 0:01:58]} 36. Nxc4 {
[%emt 0:01:13]} bxc4 {[%emt 0:00:04]} 37. Rxc4 {[%emt 0:02:19]} Rxe5 {[%emt 0:
00:04]} 38. Be4 {[%emt 0:00:45]} Re6 {[%emt 0:03:12]} 39. Bxd5 {[%emt 0:01:00]}
cxd5 {[%emt 0:00:16]} 40. Rc8+ {[%emt 0:00:14]} Kh7 {[%emt 0:00:03]} 41. Rd8 {
[%emt 0:31:14]} Re1+ {[%emt 0:35:17]} 42. Kh2 {[%emt 0:00:07]} Rd1 {[%emt 0:00:
01]} 43. Rd6 {[%emt 0:00:00]} g6 {[%emt 0:00:00]} 44. g4 {[%emt 0:00:00]} Kg7 {
[%emt 0:00:00]} 45. h4 {[%emt 0:00:00]} h5 {[%emt 0:00:00]} 46. gxh5 {[%emt 0:
00:00]} gxh5 {[%emt 0:00:00]} 47. Kg3 {[%emt 0:00:00]} f6 {[%emt 0:00:00]} 48.
Rd8 {[%emt 0:00:00]} Kg6 {[%emt 0:00:00]} 49. f3 {[%emt 0:00:00]} d4 {[%emt 0:
00:00]} 50. Kf4 {[%emt 0:00:00]} Rh1 {[%emt 0:00:00]} 51. Kg3 {[%emt 0:00:00]}
Rd1 {[%emt 0:00:00]} 52. Kf4 {[%emt 0:00:00]} d3 {[%emt 0:00:00]} 53. Ke3 {
[%emt 0:00:00]} Rh1 {[%emt 0:00:00]} 54. Rd4 {[%emt 0:00:00]} Rh3 {[%emt 0:00:
00]} 55. Rf4 {[%emt 0:00:00]} 1/2-1/2

[Event "23rd ETCC Women 2021"]
[Site "Catez"]
[Date "2021.11.19"]
[Round "7.4"]
[White "Shuvalova, Polina"]
[Black "Beydullayeva, Govhar"]
[Result "1-0"]
[ECO "B92"]
[WhiteElo "2515"]
[BlackElo "2278"]
[Annotator "ChessBase"]
[PlyCount "77"]
[EventDate "2021.11.08"]
[EventType "team-tourn"]
[EventCountry "SLO"]
[SourceTitle "playchess.com"]
[Source "ChessBase"]
[SourceQuality "1"]
[WhiteTeam "Russia"]
[BlackTeam "Azerbaijan"]
[WhiteTeamCountry "RUS"]
[BlackTeamCountry "AZE"]
[TimeControl "40/5400+30:1800+30"]

1. e4 {[%emt 0:00:05]} c5 {[%emt 0:00:09]} 2. Nf3 {[%emt 0:00:13]} d6 {[%emt 0:
00:06]} 3. d4 {[%emt 0:00:07]} cxd4 {[%emt 0:00:05]} 4. Nxd4 {[%emt 0:00:03]}
Nf6 {[%emt 0:00:03]} 5. Nc3 {[%emt 0:00:09]} a6 {[%emt 0:00:05]} 6. Be2 {
[%emt 0:00:09]} e5 {[%emt 0:00:13]} 7. Nb3 {[%emt 0:00:08]} Be7 {[%emt 0:00:04]
} 8. Be3 {[%emt 0:00:17]} Be6 {[%emt 0:04:04]} 9. Nd5 {[%emt 0:00:09]} Nxd5 {
[%emt 0:05:06]} 10. exd5 {[%emt 0:00:24]} Bf5 {[%emt 0:00:02]} 11. Qd2 {
[%emt 0:00:16]} Nd7 {[%emt 0:00:28]} 12. Na5 {[%emt 0:01:29]} Qc7 {[%emt 0:03:
23]} 13. c4 {[%emt 0:00:54]} O-O {[%emt 0:01:59]} 14. O-O {[%emt 0:02:51]} Bg6
{[%emt 0:02:32]} 15. b4 {[%emt 0:04:20]} f5 {[%emt 0:05:15]} 16. f4 {[%emt 0:
01:08]} Nf6 {[%emt 0:07:48]} 17. fxe5 {[%emt 0:11:45]} dxe5 {[%emt 0:07:37]}
18. c5 {[%emt 0:00:54]} f4 {[%emt 0:04:59]} 19. Bf2 {[%emt 0:01:04]} Ne4 {
[%emt 0:02:35]} 20. Qe1 {[%emt 0:01:25]} Bf6 {[%emt 0:03:53]} 21. d6 {[%emt 0:
01:09]} Qd7 {[%emt 0:01:12]} 22. Rd1 {[%emt 0:21:25]} Rae8 {[%emt 0:08:00]} 23.
Kh1 {[%emt 0:09:30]} Bd8 {[%emt 0:05:22]} 24. Bh4 {[%emt 0:12:46]} Bxh4 {
[%emt 0:09:21]} 25. Qxh4 {[%emt 0:00:16]} Bf5 {[%emt 0:02:27]} 26. Bf3 {
[%emt 0:08:23]} Nc3 {[%emt 0:11:38]} 27. Bxb7 {[%emt 0:01:05]} Nxd1 {[%emt 0:
00:06]} 28. Bc6 {[%emt 0:04:32]} Qd8 {[%emt 0:06:05]} 29. Qxd8 {[%emt 0:00:12]}
Rxd8 {[%emt 0:00:11]} 30. Rxd1 {[%emt 0:00:07]} Kf7 {[%emt 0:00:56]} 31. Bb7 {
[%emt 0:02:37]} Bg4 {[%emt 0:02:07]} 32. Re1 {[%emt 0:03:21]} Kf6 {[%emt 0:01:
19]} 33. Kg1 {[%emt 0:06:24]} g5 {[%emt 0:05:20]} 34. Bxa6 {[%emt 0:00:57]} f3
{[%emt 0:00:07]} 35. gxf3 {[%emt 0:01:12]} Bxf3 {[%emt 0:00:03]} 36. Bb7 {
[%emt 0:00:13]} Ke6 {[%emt 0:01:21]} 37. Bxf3 {[%emt 0:01:37]} Rxf3 {[%emt 0:
00:02]} 38. Nc6 {[%emt 0:00:25]} Ra8 {[%emt 0:01:01]} 39. Nd4+ {[%emt 0:00:13]}
1-0

[Event "23rd ETCC Women 2021"]
[Site "Catez"]
[Date "2021.11.19"]
[Round "7.5"]
[White "Javakhishvili, Lela"]
[Black "Osmak, Iulija"]
[Result "1/2-1/2"]
[ECO "D19"]
[WhiteElo "2446"]
[BlackElo "2423"]
[Annotator "NA"]
[PlyCount "61"]
[EventDate "2021.11.08"]
[EventType "team-tourn"]
[EventCountry "SLO"]
[SourceTitle "playchess.com"]
[Source "ChessBase"]
[SourceQuality "1"]
[WhiteTeam "Georgia"]
[BlackTeam "Ukraine"]
[WhiteTeamCountry "GEO"]
[BlackTeamCountry "UKR"]
[TimeControl "40/5400+30:1800+30"]

1. d4 {[%emt 0:00:04]} d5 {[%emt 0:00:04]} 2. c4 {[%emt 0:00:08]} c6 {[%emt 0:
00:03]} 3. Nf3 {[%emt 0:00:15]} Nf6 {[%emt 0:00:08]} 4. Nc3 {[%emt 0:00:23]}
dxc4 {[%emt 0:00:27]} 5. a4 {[%emt 0:00:21]} Bf5 {[%emt 0:00:27]} 6. e3 {
[%emt 0:00:47]} e6 {[%emt 0:00:39]} 7. Bxc4 {[%emt 0:00:26]} Bb4 {[%emt 0:00:
33]} 8. O-O {[%emt 0:00:57]} Nbd7 {[%emt 0:04:01]} 9. Qe2 {[%emt 0:02:22]} O-O
{[%emt 0:00:26]} 10. e4 {[%emt 0:01:00]} Bg6 {[%emt 0:00:20]} 11. e5 {[%emt 0:
01:34]} Nd5 {[%emt 0:00:16]} 12. Nxd5 {[%emt 0:00:27]} cxd5 {[%emt 0:00:28]}
13. Bd3 {[%emt 0:00:25]} Bh5 {[%emt 0:01:05]} 14. Qe3 {[%emt 0:01:36]} Be7 {
[%emt 0:01:16]} 15. Bd2 {[%emt 0:01:58]} Nb8 {[%emt 0:02:46]} 16. Ne1 {[%emt 0:
00:40]} Nc6 {[%emt 0:01:35]} 17. Nc2 {[%emt 0:01:16]} Bg6 {[%emt 0:00:48]} 18.
f4 {[%emt 0:02:45]} Qb6 {[%emt 0:02:39]} 19. Bc3 {[%emt 0:03:04]} Bxd3 {
[%emt 0:01:39]} 20. Qxd3 {[%emt 0:00:11]} a5 {[%emt 0:02:04]} 21. Kh1 {[%emt 0:
01:49]} f5 {[%emt 0:00:34]} 22. exf6 {[%emt 0:01:07]} Bxf6 {[%emt 0:01:02]} 23.
Qe3 {[%emt 0:02:43]} Rae8 {[%emt 0:00:31]} 24. Rfe1 {[%emt 0:01:13]} Qc7 {
[%emt 0:02:02]} 25. Re2 {[%emt 0:02:17]} Qf7 {[%emt 0:01:06]} 26. Rf1 {[%emt 0:
01:21]} Qg6 {[%emt 0:01:47]} 27. Qd2 {[%emt 0:02:42]} Qh5 {[%emt 0:01:10]} 28.
Ne3 {[%emt 0:04:04]} Qg6 {[%emt 0:03:14]} 29. Ree1 {[%emt 0:00:26]} Bd8 {
[%emt 0:00:38]} 30. Qc2 {[%emt 0:00:49]} Qxc2 {[%emt 0:00:26]} 31. Nxc2 {
[%emt 0:00:15]} 1/2-1/2

[Event "23rd ETCC Women 2021"]
[Site "Catez"]
[Date "2021.11.19"]
[Round "7.6"]
[White "Buksa, Nataliya"]
[Black "Arabidze, Meri"]
[Result "1/2-1/2"]
[ECO "C42"]
[WhiteElo "2410"]
[BlackElo "2441"]
[Annotator "NA"]
[PlyCount "60"]
[EventDate "2021.11.08"]
[EventType "team-tourn"]
[EventCountry "SLO"]
[SourceTitle "playchess.com"]
[Source "ChessBase"]
[SourceQuality "1"]
[WhiteTeam "Ukraine"]
[BlackTeam "Georgia"]
[WhiteTeamCountry "UKR"]
[BlackTeamCountry "GEO"]
[TimeControl "40/5400+30:1800+30"]

1. e4 {[%emt 0:00:02]} e5 {[%emt 0:00:06]} 2. Nf3 {[%emt 0:00:05]} Nf6 {
[%emt 0:00:11]} 3. Nxe5 {[%emt 0:01:00]} d6 {[%emt 0:00:19]} 4. Nf3 {[%emt 0:
00:04]} Nxe4 {[%emt 0:00:11]} 5. Qe2 {[%emt 0:00:21]} Qe7 {[%emt 0:00:12]} 6.
d3 {[%emt 0:00:15]} Nf6 {[%emt 0:00:39]} 7. Nc3 {[%emt 0:00:04]} c6 {[%emt 0:
00:59]} 8. d4 {[%emt 0:04:53]} Qxe2+ {[%emt 0:02:13]} 9. Bxe2 {[%emt 0:00:24]}
d5 {[%emt 0:00:27]} 10. Bf4 {[%emt 0:01:03]} Bf5 {[%emt 0:00:52]} 11. O-O-O {
[%emt 0:00:06]} Bb4 {[%emt 0:01:28]} 12. Bd3 {[%emt 0:03:43]} Bxd3 {[%emt 0:00:
06]} 13. Rxd3 {[%emt 0:00:03]} O-O {[%emt 0:00:30]} 14. Nd1 {[%emt 0:01:01]}
Ne4 {[%emt 0:01:34]} 15. c3 {[%emt 0:00:07]} Bd6 {[%emt 0:00:30]} 16. Bxd6 {
[%emt 0:04:54]} Nxd6 {[%emt 0:00:02]} 17. Re3 {[%emt 0:00:06]} Na6 {[%emt 0:00:
52]} 18. Re7 {[%emt 0:02:21]} Rfe8 {[%emt 0:01:22]} 19. Rhe1 {[%emt 0:00:38]}
Kf8 {[%emt 0:01:52]} 20. Rxe8+ {[%emt 0:03:56]} Rxe8 {[%emt 0:00:29]} 21. Rxe8+
{[%emt 0:00:03]} Kxe8 {[%emt 0:00:06]} 22. Ne3 {[%emt 0:00:03]} Nc7 {[%emt 0:
01:33]} 23. Kd2 {[%emt 0:01:05]} Ne6 {[%emt 0:01:18]} 24. Ne5 {[%emt 0:00:05]}
f6 {[%emt 0:00:36]} 25. Nd3 {[%emt 0:00:05]} Ne4+ {[%emt 0:00:39]} 26. Ke2 {
[%emt 0:00:51]} Nd6 {[%emt 0:00:24]} 27. Kd2 {[%emt 0:01:56]} Ne4+ {[%emt 0:01:
45]} 28. Ke2 {[%emt 0:02:41]} Nd6 {[%emt 0:00:21]} 29. Kd2 {[%emt 0:00:37]}
Ne4+ {[%emt 0:00:17]} 30. Ke2 {[%emt 0:00:19]} Nd6 {[%emt 0:00:17]} 1/2-1/2